bitfinex-derivatives/quotes_BTCF0:USTF0_20241226
["timestamp","ask_amount","ask_price","bid_price","bid_amount"]
[1735230339582,0.052127,96010.0,96008.0,0.003001]
[1735230339887,0.35012,96029.0,96003.0,0.0948]
[1735230340094,0.05213,96004.0,96003.0,0.0948]
[1735230340592,0.05213,96004.0,95985.0,0.01719513]
[1735230340593,0.052141,95984.0,95970.0,0.15622427]
[1735230340792,0.052141,95984.0,95983.0,0.30156296]
[1735230341882,0.052138,95990.0,95983.0,0.30156296]
[1735230342088,0.052139,95988.0,95983.0,0.30156296]
[1735230342488,0.052141,95985.0,95983.0,0.30156296]
[1735230342891,0.05369102,96008.0,95983.0,0.30156296]
[1735230343087,0.052138,95990.0,95983.0,0.30256296]
[1735230343282,0.052132,96000.0,95984.0,0.052141]
[1735230343491,0.052129,96007.0,95990.0,0.10407627]
[1735230343682,0.052129,96007.0,95999.0,0.052133]
[1735230343888,0.00156302,96008.0,96002.0,0.052131]
[1735230344286,0.00156302,96008.0,96002.0,0.352131]
[1735230344486,0.00156302,96008.0,96002.0,0.3]
[1735230344683,0.052129,96007.0,96002.0,0.3]
[1735230344891,0.054129,96007.0,96002.0,0.3]
[1735230345197,0.052118,96028.0,96002.0,0.3]
[1735230345494,0.052128,96009.0,96002.0,0.3]
[1735230345682,0.052131,96004.0,96002.0,0.3]
[1735230346487,0.052131,96003.0,96002.0,0.3]
[1735230346697,0.002,96008.0,96002.0,0.3]
[1735230346889,0.00156263,96024.0,96006.0,0.052129]
[1735230347089,0.00156263,96024.0,96014.0,0.10407627]
[1735230347299,0.00156263,96024.0,96014.0,0.40407627]
[1735230347996,0.052123,96017.0,96014.0,0.40407627]
[1735230348192,0.052124,96016.0,96014.0,0.3]
[1735230349794,0.055124,96016.0,96014.0,0.301]
[1735230350895,0.055124,96016.0,96014.0,0.001]
[1735230351487,0.055124,96016.0,96014.0,0.002]
[1735230352291,0.055124,96016.0,96014.0,0.001]
[1735230352687,0.07242062,96016.0,96014.0,0.001]
[1735230352894,0.052132,96001.0,96000.0,0.2925]
[1735230353493,0.052132,96001.0,96000.0,0.0994]
[1735230354209,0.055132,96001.0,96000.0,0.0994]
[1735230354388,0.052132,96000.0,95989.0,0.1007]
[1735230354593,0.003,96001.0,95991.0,0.0972]
[1735230354995,0.052136,95993.0,95991.0,0.3972]
[1735230355596,0.052136,95993.0,95991.0,0.5832312]
[1735230356501,0.052136,95993.0,95991.0,0.5852312]
[1735230357096,0.052136,95993.0,95991.0,0.2862312]
[1735230358302,0.052136,95993.0,95991.0,0.1002]
[1735230358498,0.052136,95993.0,95991.0,0.0982]
[1735230358702,0.052136,95993.0,95991.0,0.0992]
[1735230358900,0.052136,95993.0,95991.0,0.1002]
[1735230359099,0.052136,95993.0,95991.0,0.0982]
[1735230359301,0.057136,95993.0,95991.0,0.0982]
[1735230359691,0.057136,95993.0,95991.0,0.0972]
[1735230360302,0.052136,95993.0,95991.0,0.0972]
[1735230360605,0.054136,95993.0,95991.0,0.0972]
[1735230360812,0.054136,95993.0,95991.0,0.3972]
[1735230366109,0.00156285,96013.0,95991.0,0.3972]
[1735230366311,0.00156285,96013.0,96001.0,0.052132]
[1735230366612,0.052131,96003.0,96000.0,0.10407627]
[1735230366910,0.00156285,96013.0,96000.0,0.2064411]
[1735230367110,0.00156285,96013.0,96007.0,0.18688803]
[1735230367312,0.052127,96009.0,96007.0,0.18688803]
[1735230367615,0.052127,96009.0,96007.0,0.39332913]
[1735230368518,0.052127,96009.0,96007.0,0.2064411]
[1735230369311,0.052128,96008.0,96007.0,0.2064411]
[1735230370616,0.00156285,96013.0,95998.0,0.01679923]
[1735230370910,0.052132,96000.0,95998.0,0.2064411]
[1735230373106,0.054132,96000.0,95998.0,0.2064411]
[1735230374404,0.00156285,96013.0,95998.0,0.2064411]
[1735230374601,0.00156285,96013.0,96000.0,0.10407627]
[1735230375005,0.00156285,96013.0,96000.0,0.31051737]
[1735230375613,0.00456285,96013.0,96000.0,0.31051737]
[1735230375916,0.00456285,96013.0,96005.0,0.052129]
[1735230375917,0.052127,96011.0,96005.0,0.052129]
[1735230376211,0.052127,96011.0,96008.0,0.18676504]
[1735230376415,0.052127,96011.0,96008.0,0.39320614]
[1735230377018,0.003,96013.0,96008.0,0.39320614]
[1735230377218,0.005,96011.0,96010.0,0.052127]
[1735230377413,0.005,96011.0,96008.0,0.39392614]
[1735230377630,0.005,96011.0,96010.0,0.24902005]
[1735230377814,0.057126,96011.0,96010.0,0.24902005]
[1735230378014,0.057126,96011.0,96010.0,0.45546115]
[1735230378609,0.057126,96011.0,96010.0,0.2064411]
[1735230378812,0.058126,96011.0,96010.0,0.2064411]
[1735230379214,0.006,96011.0,96010.0,0.2585681]
[1735230379410,0.006,96011.0,96010.0,0.2064411]
[1735230379805,0.052114,96034.0,96010.0,0.2064411]
[1735230380118,0.1247559,96027.0,96020.0,0.10407627]
[1735230380310,0.15594487,96033.0,96012.0,0.052126]
[1735230380311,0.05212,96022.0,96021.0,0.1018]
[1735230380707,0.05212,96022.0,96021.0,0.3082411]
[1735230381612,0.05212,96022.0,96021.0,0.49484694]
[1735230382521,0.05212,96022.0,96021.0,0.49584694]
[1735230382726,0.05212,96022.0,96021.0,0.3092411]
[1735230383223,0.05212,96022.0,96021.0,0.001]
[1735230383617,0.052123,96018.0,96017.0,0.24880779]
[1735230384124,0.052125,96014.0,96013.0,0.28695778]
[1735230384416,0.052125,96014.0,96013.0,0.49339888]
[1735230385620,0.052125,96014.0,96013.0,0.49439888]
[1735230385816,0.052125,96014.0,96013.0,0.28795778]
[1735230386625,0.052125,96014.0,96013.0,0.04302978]
[1735230387122,0.052125,96014.0,95994.0,0.0973]
[1735230387123,0.052135,95995.0,95994.0,0.0973]
[1735230388615,0.20809384,96001.0,95994.0,0.3037411]
[1735230388819,0.052133,95999.0,95995.0,0.158635]
[1735230389225,0.052133,95999.0,95995.0,0.3650761]
[1735230391028,0.052133,95999.0,95995.0,0.3129411]
[1735230391324,0.052133,95999.0,95995.0,0.3139411]
[1735230391923,0.052133,95999.0,95995.0,0.3169411]
[1735230392120,0.052134,95997.0,95995.0,0.33798879]
[1735230394229,0.052134,95997.0,95995.0,0.33398879]
[1735230395522,0.052134,95997.0,95995.0,0.33498879]
[1735230396024,0.052134,95997.0,95995.0,0.33798879]
[1735230397527,0.052134,95997.0,95995.0,0.23148879]
[1735230397722,0.052134,95997.0,95995.0,0.004]
[1735230398122,0.052134,95997.0,95995.0,0.003]
[1735230398323,0.052134,95997.0,95995.0,0.004]
[1735230398731,0.17683318,95997.0,95995.0,0.004]
[1735230399134,0.052135,95995.0,95994.0,0.0973]
[1735230401232,0.054135,95995.0,95994.0,0.0973]
[1735230401824,0.055135,95995.0,95994.0,0.0973]
[1735230405228,0.07421992,96006.0,96005.0,0.05213]
[1735230405536,0.21834658,96027.0,95996.0,0.20815254]
[1735230405730,0.27046458,96027.0,96017.0,0.10407627]
[1735230405931,0.052118,96027.0,96018.0,0.2193]
[1735230406225,0.00156247,96034.0,96018.0,0.2193]
[1735230406430,0.00156247,96034.0,96032.0,0.052115]
[1735230407532,0.00156247,96034.0,96026.0,0.052118]
[1735230407734,0.00156247,96034.0,96024.0,0.10407627]
[1735230407934,0.052117,96028.0,96024.0,0.10407627]
[1735230408134,0.052117,96028.0,96019.0,0.052122]
[1735230408540,0.00156247,96034.0,96020.0,0.1188]
[1735230408732,0.052122,96019.0,96018.0,0.11]
[1735230409241,0.05213,96004.0,96003.0,0.1188]
[1735230410039,0.052105,96051.0,96003.0,0.50948883]
[1735230410238,0.052108,96045.0,96024.0,0.10407627]
[1735230410434,0.052117,96028.0,96024.0,0.10407627]
[1735230410633,0.052118,96026.0,96024.0,0.001]
[1735230411337,0.052121,96022.0,96016.0,0.10407627]
[1735230412134,0.052121,96022.0,96016.0,0.13093342]
[1735230412443,0.052121,96021.0,96016.0,0.13093342]
[1735230413232,0.002,96026.0,96021.0,0.052121]
[1735230413431,0.002,96026.0,96017.0,0.1187]
[1735230413432,0.002,96026.0,96022.0,0.05212]
[1735230413641,0.002,96026.0,96017.0,0.1187]
[1735230414041,0.054118,96026.0,96017.0,0.1187]
[1735230414342,0.052118,96026.0,96017.0,0.1187]
[1735230415037,0.052118,96026.0,96017.0,0.1197]
[1735230416338,0.052119,96025.0,96017.0,0.1197]
[1735230416531,0.052115,96032.0,96017.0,0.1197]
[1735230416738,0.00156247,96034.0,96017.0,0.1197]
[1735230417140,0.052123,96018.0,96017.0,0.001]
[1735230417541,0.052127,96009.0,96008.0,0.10407627]
[1735230417743,0.052128,96008.0,96006.0,0.42937154]
[1735230418043,0.052128,96008.0,96006.0,0.118]
[1735230419350,0.052128,96008.0,96005.0,0.02703812]
[1735230419646,0.052128,96008.0,96004.0,0.1173]
[1735230420241,0.052115,96032.0,96004.0,0.1173]
[1735230420544,0.20815254,96014.0,95970.0,0.43528237]
[1735230420745,0.052145,95977.0,95976.0,0.20056685]
[1735230421047,0.052148,95971.0,95970.0,0.43584237]
[1735230421242,0.052148,95971.0,95970.0,0.43528237]
[1735230422143,0.052148,95971.0,95970.0,0.31998337]
[1735230422659,0.052148,95971.0,95970.0,0.32298337]
[1735230422849,0.052148,95971.0,95970.0,0.003]
[1735230423445,0.052148,95971.0,95970.0,0.011]
[1735230423841,0.052148,95971.0,95970.0,0.009]
[1735230424243,0.052148,95971.0,95970.0,0.008]
[1735230438970,0.15662631,95980.0,95951.0,0.1163]
[1735230439170,0.052158,95952.0,95951.0,0.1163]
[1735230440366,0.052158,95952.0,95951.0,0.1253]
[1735230440880,0.052158,95952.0,95951.0,0.1313]
[1735230444668,0.052152,95963.0,95951.0,0.1313]
[1735230444874,0.052158,95952.0,95951.0,0.1313]
[1735230446878,0.10439817,95970.0,95951.0,0.1313]
[1735230447077,0.052158,95952.0,95951.0,0.1313]
[1735230447679,0.052158,95952.0,95951.0,0.1253]
[1735230447877,0.052158,95952.0,95951.0,0.1313]
[1735230449376,0.053158,95952.0,95951.0,0.1313]
[1735230449576,0.053158,95952.0,95951.0,0.015]
[1735230449984,0.001,95952.0,95951.0,0.013]
[1735230450282,0.053158,95952.0,95951.0,0.013]
[1735230450684,0.001,95952.0,95951.0,0.07118666]
[1735230450884,0.001,95952.0,95951.0,0.06818666]
[1735230451474,0.052144,95978.0,95951.0,0.06818666]
[1735230451475,0.052142,95983.0,95951.0,0.01602766]
[1735230451681,0.052146,95975.0,95974.0,0.052146]
[1735230451876,0.052148,95972.0,95971.0,0.241]
[1735230452080,0.10439817,95981.0,95968.0,0.05215]
[1735230452286,0.10439817,95981.0,95961.0,0.241]
[1735230452483,0.052151,95966.0,95965.0,0.052151]
[1735230453383,0.02350974,95989.0,95963.0,0.00602766]
[1735230453685,0.052147,95973.0,95972.0,0.052147]
[1735230454287,0.052151,95966.0,95965.0,0.001]
[1735230454681,0.052151,95966.0,95965.0,0.053151]
[1735230454874,0.052139,95988.0,95965.0,0.001]
[1735230455279,0.052148,95972.0,95971.0,0.052148]
[1735230456775,0.053148,95972.0,95971.0,0.052148]
[1735230457285,0.10439817,95981.0,95963.0,0.00602766]
[1735230457488,0.10439817,95981.0,95967.0,0.05215]
[1735230457489,0.05215,95968.0,95967.0,0.05215]
[1735230460083,0.08093563,95968.0,95967.0,0.05215]
[1735230460484,0.052152,95964.0,95963.0,0.255795]
[1735230460689,0.052152,95964.0,95963.0,0.254795]
[1735230461690,0.052152,95964.0,95963.0,0.255795]
[1735230461892,0.052152,95964.0,95963.0,0.00702766]
[1735230462287,0.052152,95964.0,95963.0,0.00902766]
[1735230463494,0.052152,95964.0,95963.0,0.257795]
[1735230463996,0.052145,95977.0,95967.0,0.10439817]
[1735230464193,0.05215,95968.0,95967.0,0.10439817]
[1735230464392,0.28084228,96022.0,95963.0,0.257795]
[1735230464693,0.21849004,96001.0,95985.0,0.10439817]
[1735230464992,0.21849004,96001.0,95989.0,0.00602766]
[1735230465303,0.00156275,96016.0,96010.0,0.00602766]
[1735230465593,0.052126,96013.0,96011.0,0.2648]
[1735230465999,0.052126,96013.0,96010.0,0.00602766]
[1735230466000,0.052133,95999.0,95997.0,0.052133]
[1735230466194,0.052133,95999.0,95992.0,0.052137]
[1735230466885,0.10439817,96002.0,95990.0,0.24941144]
[1735230467091,0.10439817,96002.0,95990.0,0.24316987]
[1735230467092,0.052137,95992.0,95990.0,0.24316987]
[1735230467390,0.289032,96001.0,95991.0,0.27564566]
[1735230467594,0.052137,95992.0,95991.0,0.27564566]
[1735230467990,0.05214,95985.0,95984.0,0.00056]
[1735230468190,0.05215,95968.0,95966.0,0.05215]
[1735230468389,0.05215,95968.0,95966.0,0.08151263]
[1735230469399,0.05215,95968.0,95961.0,0.133]
[1735230469585,0.05215,95968.0,95966.0,0.001]
[1735230469992,0.052159,95951.0,95949.0,0.37262489]
[1735230470190,0.052159,95951.0,95950.0,0.155]
[1735230470495,0.052158,95954.0,95950.0,0.155]
[1735230470700,0.02910907,95968.0,95950.0,0.155]
[1735230470889,0.052155,95958.0,95950.0,0.26542583]
[1735230471498,0.052155,95958.0,95950.0,0.26842583]
[1735230472096,0.052155,95958.0,95950.0,0.26542583]
[1735230472296,0.052155,95958.0,95950.0,0.27242583]
[1735230472698,0.052155,95958.0,95950.0,0.27042583]
[1735230473095,0.052155,95958.0,95950.0,0.26942583]
[1735230473800,0.03111881,95971.0,95950.0,0.26942583]
[1735230474298,0.052158,95954.0,95950.0,0.26642583]
[1735230474492,0.03111881,95971.0,95950.0,0.16502766]
[1735230474804,0.052158,95953.0,95950.0,0.26942583]
[1735230475101,0.052158,95953.0,95950.0,0.16502766]
[1735230476003,0.052158,95953.0,95950.0,0.16202766]
[1735230476203,0.052158,95953.0,95950.0,0.16502766]
[1735230479098,0.00156383,95971.0,95966.0,0.00602766]
[1735230479401,0.12463098,95975.0,95967.0,0.2695]
[1735230480700,0.05215,95969.0,95967.0,0.27552766]
[1735230480899,0.02845877,95986.0,95956.0,0.37801255]
[1735230480900,0.052156,95957.0,95956.0,0.37801255]
[1735230482008,0.052156,95957.0,95956.0,0.00602766]
[1735230482605,0.052156,95957.0,95956.0,0.00702766]
[1735230483315,0.05215,95968.0,95966.0,0.00602766]
[1735230483902,0.12463098,95976.0,95956.0,0.00702766]
[1735230484102,0.052155,95958.0,95956.0,0.00702766]
[1735230484306,0.052155,95958.0,95956.0,0.001]
[1735230484710,0.052158,95954.0,95951.0,0.133]
[1735230486202,0.052152,95964.0,95961.0,0.00602766]
[1735230486605,0.09353891,95967.0,95961.0,0.00602766]
[1735230486804,0.09353891,95967.0,95965.0,0.052151]
[1735230487010,0.09353891,95967.0,95966.0,0.1391]
[1735230487614,0.09353891,95967.0,95961.0,0.03489487]
[1735230487810,0.052146,95975.0,95951.0,0.01002766]
[1735230488007,0.052146,95975.0,95951.0,0.00602766]
[1735230488008,0.052156,95956.0,95951.0,0.00602766]
[1735230488319,0.052156,95956.0,95951.0,0.01002766]
[1735230488515,0.052158,95954.0,95951.0,0.01002766]
[1735230488709,0.052158,95954.0,95951.0,0.00602766]
[1735230489309,0.052158,95954.0,95951.0,0.00902766]
[1735230490320,0.052158,95953.0,95951.0,0.00902766]
[1735230490721,0.052158,95953.0,95951.0,0.00602766]
[1735230491018,0.052158,95953.0,95951.0,0.01002766]
[1735230493322,0.052158,95953.0,95951.0,0.004]
[1735230496626,0.09353891,95952.0,95951.0,0.004]
[1735230498019,0.052158,95953.0,95951.0,0.004]
[1735230498221,0.1482,95952.0,95951.0,0.004]
[1735230498419,0.1482,95952.0,95935.0,0.31230742]
[1735230498420,0.052167,95936.0,95935.0,0.31230742]
[1735230499119,0.052167,95936.0,95932.0,0.37050408]
[1735230499319,0.05216,95949.0,95932.0,0.31833508]
[1735230499527,0.052169,95933.0,95932.0,0.31833508]
[1735230499915,0.052169,95933.0,95924.0,0.37198489]
[1735230499916,0.052169,95933.0,95926.0,0.31230742]
[1735230500121,0.052172,95927.0,95926.0,0.31230742]
[1735230501122,0.052172,95927.0,95926.0,0.32130742]
[1735230501528,0.052172,95927.0,95926.0,0.31230742]
[1735230502031,0.052172,95927.0,95918.0,0.37198489]
[1735230502032,0.12480458,95927.0,95909.0,0.052182]
[1735230502432,0.052177,95918.0,95910.0,0.052181]
[1735230502822,0.052178,95917.0,95910.0,0.052181]
[1735230503131,0.052178,95916.0,95910.0,0.052181]
[1735230503336,0.052175,95922.0,95913.0,0.05218]
[1735230503630,0.001,95927.0,95921.0,0.00602766]
[1735230504133,0.03722893,95933.0,95921.0,0.00602766]
[1735230504134,0.09347973,95931.0,95921.0,0.00602766]
[1735230504325,0.05217,95930.0,95921.0,0.00602766]
[1735230504526,0.052173,95926.0,95921.0,0.00602766]
[1735230504731,0.052173,95925.0,95921.0,0.00802766]
[1735230504938,0.052174,95923.0,95921.0,0.00802766]
[1735230505826,0.052174,95923.0,95921.0,0.00902766]
[1735230506229,0.052174,95923.0,95921.0,0.00702766]
[1735230506435,0.052174,95923.0,95921.0,0.00902766]
[1735230506844,0.052174,95923.0,95921.0,0.00702766]
[1735230507031,0.052174,95923.0,95921.0,0.00902766]
[1735230507231,0.052174,95923.0,95921.0,0.04528341]
[1735230508329,0.052174,95923.0,95921.0,0.00902766]
[1735230510139,0.052174,95923.0,95921.0,0.003]
[1735230512040,0.08943659,95923.0,95921.0,0.003]
[1735230513847,0.052174,95923.0,95921.0,0.003]
[1735230516246,0.0891304,95923.0,95921.0,0.003]
[1735230519246,0.052175,95922.0,95921.0,0.003]
[1735230520437,0.052175,95922.0,95921.0,0.001]
[1735230520745,0.052175,95922.0,95921.0,0.003]
[1735230521151,0.052175,95922.0,95921.0,0.002]
[1735230521346,0.052175,95922.0,95921.0,0.003]
[1735230529852,0.12480458,95924.0,95921.0,0.003]
[1735230530149,0.20804936,95929.0,95924.0,0.052174]
[1735230530346,0.20804936,95929.0,95925.0,0.297]
[1735230530551,0.052168,95935.0,95925.0,0.297]
[1735230530748,0.18727141,95936.0,95928.0,0.052171]
[1735230530949,0.052169,95933.0,95928.0,0.052171]
[1735230531152,0.052169,95932.0,95925.0,0.40195817]
[1735230531354,0.052169,95932.0,95925.0,0.40139817]
[1735230531545,0.12499853,95930.0,95929.0,0.24988363]
[1735230531747,0.12499853,95930.0,95929.0,0.30205463]
[1735230532151,0.18727141,95943.0,95937.0,0.052167]
[1735230532449,0.30178958,95964.0,95956.0,0.00602766]
[1735230532641,0.24963758,95964.0,95956.0,0.15532766]
[1735230532842,0.24963758,95964.0,95962.0,0.052153]
[1735230533039,0.0537106,95973.0,95963.0,0.052152]
[1735230533243,0.0015636,95973.0,95963.0,0.052152]
[1735230533549,0.052149,95969.0,95963.0,0.052152]
[1735230533750,0.052149,95969.0,95964.0,0.143]
[1735230533949,0.0015636,95973.0,95969.0,0.052149]
[1735230534156,0.0015636,95973.0,95972.0,0.00602766]
[1735230535056,0.1436,96003.0,95977.0,0.052145]
[1735230535255,0.10439817,96000.0,95972.0,0.00602766]
[1735230535548,0.052146,95975.0,95974.0,0.00602766]
[1735230537854,0.061146,95975.0,95974.0,0.00702766]
[1735230538050,0.009,95975.0,95974.0,0.00702766]
[1735230538252,0.1436,96003.0,95985.0,0.00602766]
[1735230538452,0.1468,96016.0,95986.0,0.3016]
[1735230538759,0.052136,95994.0,95987.0,0.052139]
[1735230539948,0.01,96003.0,95987.0,0.052139]
[1735230540151,0.01,96003.0,95993.0,0.10439817]
[1735230540358,0.052136,95994.0,95993.0,0.10439817]
[1735230540552,0.01,96003.0,95986.0,0.1531]
[1735230540758,0.01,96003.0,95985.0,0.00702766]
[1735230540759,0.052139,95987.0,95985.0,0.001]
[1735230540957,0.052139,95987.0,95970.0,0.10439817]
[1735230540958,0.052143,95981.0,95977.0,0.29713137]
[1735230541159,0.002,95994.0,95977.0,0.1927332]
[1735230541455,0.052143,95981.0,95980.0,0.10439817]
[1735230541661,0.052143,95981.0,95977.0,0.18670554]
[1735230542252,0.052143,95981.0,95976.0,0.052145]
[1735230542449,0.052143,95981.0,95974.0,0.00602766]
[1735230543057,0.10439817,96010.0,95972.0,0.00602766]
[1735230543251,0.052144,95978.0,95971.0,0.205448]
[1735230543452,0.052144,95979.0,95971.0,0.1533]
[1735230543854,0.052151,95966.0,95965.0,0.00156317]
[1735230544054,0.10439817,95975.0,95965.0,0.00156317]
[1735230544261,0.1457,95974.0,95965.0,0.00156317]
[1735230544559,0.052151,95966.0,95965.0,0.00156317]
[1735230545954,0.054151,95966.0,95965.0,0.00156317]
[1735230547663,0.08584398,95966.0,95965.0,0.00156317]
[1735230550068,0.03369298,95966.0,95942.0,0.203463]
[1735230550364,0.052163,95944.0,95943.0,0.156]
[1735230551562,0.052163,95944.0,95943.0,0.159]
[1735230552062,0.052163,95944.0,95943.0,0.16]
[1735230552269,0.052163,95944.0,95943.0,0.004]
[1735230552660,0.052163,95944.0,95943.0,0.002]
[1735230553869,0.052163,95944.0,95943.0,0.001]
[1735230554063,0.08279537,95944.0,95943.0,0.001]
[1735230555960,0.052163,95944.0,95943.0,0.001]
[1735230556273,0.052159,95950.0,95949.0,0.00602766]
[1735230557064,0.052163,95944.0,95943.0,0.001]
[1735230558170,0.052166,95938.0,95937.0,0.05819366]
[1735230559166,0.05216,95949.0,95936.0,0.00602766]
[1735230559366,0.052167,95938.0,95936.0,0.00602766]
[1735230560174,0.052167,95938.0,95936.0,0.1927332]
[1735230560566,0.052167,95938.0,95937.0,0.003]
[1735230560971,0.052167,95938.0,95936.0,0.1927332]
[1735230560972,0.052167,95938.0,95936.0,0.01002766]
[1735230561970,0.052167,95938.0,95937.0,0.18670554]
[1735230563077,0.052167,95938.0,95937.0,0.18770554]
[1735230563277,0.052167,95938.0,95937.0,0.001]
[1735230564067,0.052167,95938.0,95937.0,0.004]
[1735230564275,0.03067431,95954.0,95937.0,0.004]
[1735230564575,0.052166,95939.0,95937.0,0.004]
[1735230565377,0.052166,95939.0,95937.0,0.003]
[1735230565579,0.052166,95939.0,95937.0,0.004]
[1735230569979,0.02687891,95950.0,95937.0,0.004]
[1735230570175,0.104312,95956.0,95937.0,0.004]
[1735230570584,0.052166,95939.0,95937.0,0.004]
[1735230570874,0.052166,95939.0,95938.0,0.24965164]
[1735230571984,0.052166,95939.0,95938.0,0.25265164]
[1735230572176,0.052166,95939.0,95938.0,0.004]
[1735230592980,0.052166,95939.0,95938.0,0.25401007]
[1735230593996,0.17722997,95939.0,95938.0,0.25401007]
[1735230594886,0.052166,95939.0,95938.0,0.004]
[1735230597586,0.18632446,95944.0,95943.0,0.052163]
[1735230597789,0.052163,95945.0,95943.0,0.052163]
[1735230599597,0.052163,95945.0,95943.0,0.053163]
[1735230599894,0.052163,95945.0,95943.0,0.001]
[1735230600292,0.052163,95945.0,95944.0,0.33488808]
[1735230600591,0.12499042,95960.0,95944.0,0.33488808]
[1735230600592,0.02364985,95954.0,95944.0,0.33488808]
[1735230600787,0.052163,95945.0,95944.0,0.33488808]
[1735230601190,0.052163,95945.0,95944.0,0.64698261]
[1735230602706,0.052163,95945.0,95937.0,0.37198489]
[1735230602707,0.052164,95942.0,95941.0,0.18735133]
[1735230603892,0.052165,95940.0,95939.0,0.18735133]
[1735230604987,0.17717949,95940.0,95938.0,0.18735133]
[1735230605192,0.17717949,95940.0,95939.0,0.001]
[1735230605905,0.17717949,95940.0,95939.0,0.004]
[1735230606206,0.052165,95940.0,95939.0,0.19135133]
[1735230607088,0.052165,95940.0,95939.0,0.19035133]
[1735230607601,0.052165,95940.0,95939.0,0.003]
[1735230608190,0.052165,95940.0,95939.0,0.004]
[1735230611205,0.052151,95966.0,95939.0,0.004]
[1735230611404,0.20839803,95949.0,95948.0,0.00602766]
[1735230611706,0.05216,95949.0,95948.0,0.00602766]
[1735230613000,0.05316,95949.0,95948.0,0.00602766]
[1735230613809,0.001,95949.0,95948.0,0.05818866]
[1735230614101,0.15621336,95967.0,95958.0,0.00602766]
[1735230614311,0.052153,95963.0,95959.0,0.1768]
[1735230614608,0.052154,95961.0,95959.0,0.1768]
[1735230616006,0.052161,95948.0,95947.0,0.18092766]
[1735230616902,0.052161,95948.0,95947.0,0.51802676]
[1735230617400,0.05215,95967.0,95947.0,0.51802676]
[1735230617595,0.052159,95951.0,95950.0,0.10439817]
[1735230617796,0.05215,95967.0,95947.0,0.51802676]
[1735230617797,0.052161,95948.0,95947.0,0.51802676]
[1735230618206,0.052161,95948.0,95947.0,0.18092766]
[1735230621396,0.052157,95955.0,95947.0,0.18092766]
[1735230621596,0.052153,95962.0,95960.0,0.00602766]
[1735230621798,0.001,95967.0,95960.0,0.00602766]
[1735230622211,0.052145,95976.0,95964.0,0.052152]
[1735230622507,0.05215,95967.0,95965.0,0.342]
[1735230622710,0.05215,95967.0,95966.0,0.1699]
[1735230622903,0.052147,95974.0,95966.0,0.1699]
[1735230623303,0.052147,95974.0,95968.0,0.052149]
[1735230623614,0.052147,95973.0,95968.0,0.052149]
[1735230624106,0.052147,95973.0,95966.0,0.1699]
[1735230624309,0.052142,95982.0,95966.0,0.1699]
[1735230624617,0.052147,95974.0,95973.0,0.00602766]
[1735230625314,0.054147,95974.0,95973.0,0.00602766]
[1735230625912,0.054147,95974.0,95973.0,0.001]
[1735230627108,0.002,95974.0,95973.0,0.05917466]
[1735230627509,0.052141,95985.0,95979.0,0.052144]
[1735230627707,0.052141,95984.0,95980.0,0.5206]
[1735230628309,0.052142,95982.0,95980.0,0.5206]
[1735230629209,0.052142,95982.0,95980.0,0.5216]
[1735230629708,0.054142,95982.0,95980.0,0.5216]
[1735230633210,0.054142,95982.0,95980.0,0.001]
[1735230633410,0.3394,95981.0,95980.0,0.001]
[1735230633916,0.054142,95982.0,95981.0,0.00602766]
[1735230633917,0.002,95982.0,95981.0,0.00602766]
[1735230634125,0.052141,95984.0,95981.0,0.34012766]
[1735230634316,0.052142,95983.0,95981.0,0.34012766]
[1735230634512,0.052142,95983.0,95981.0,0.39227066]
[1735230635410,0.052142,95983.0,95981.0,0.34012766]
[1735230638515,0.052145,95976.0,95975.0,0.18622651]
[1735230638714,0.052148,95971.0,95970.0,0.24950043]
[1735230638912,0.052148,95971.0,95970.0,0.24886043]
[1735230639820,0.052155,95959.0,95958.0,0.0006]
[1735230640024,0.052157,95954.0,95953.0,0.24886043]
[1735230640914,0.052147,95974.0,95958.0,0.001]
[1735230641120,0.052151,95965.0,95958.0,0.001]
[1735230641720,0.052158,95952.0,95951.0,0.00602766]
[1735230642918,0.052158,95952.0,95951.0,0.00702766]
[1735230643820,0.07352598,95952.0,95951.0,0.00702766]
[1735230644925,0.07352598,95952.0,95951.0,0.001]
[1735230645130,0.07352598,95952.0,95942.0,0.24886043]
[1735230645428,0.052166,95938.0,95937.0,0.24886043]
[1735230646828,0.3441,95951.0,95931.0,0.00602766]
[1735230646829,0.052169,95932.0,95931.0,0.00602766]
[1735230647938,0.052169,95932.0,95931.0,0.00802766]
[1735230648830,0.052169,95932.0,95931.0,0.01502766]
[1735230652026,0.052161,95947.0,95946.0,0.00602766]
[1735230653422,0.00156374,95952.0,95950.0,0.052159]
[1735230653927,0.3458,95983.0,95950.0,0.052159]
[1735230653928,0.052144,95978.0,95977.0,0.00602766]
[1735230655119,0.052144,95978.0,95977.0,0.00702766]
[1735230655518,0.052144,95978.0,95977.0,0.001]
[1735230656826,0.052144,95978.0,95977.0,0.00702766]
[1735230661128,0.01869137,95984.0,95983.0,0.052141]
[1735230661129,0.052141,95984.0,95983.0,0.052141]
[1735230661540,0.052138,95991.0,95985.0,0.05214]
[1735230661931,0.0188211,95999.0,95985.0,0.05214]
[1735230662131,0.052144,95979.0,95977.0,0.00702766]
[1735230662333,0.052144,95979.0,95977.0,0.00602766]
[1735230664750,0.052144,95979.0,95977.0,0.00702766]
[1735230665040,0.0193393,95984.0,95977.0,0.00702766]
[1735230665242,0.052137,95992.0,95977.0,0.00702766]
[1735230665441,0.052128,96008.0,95977.0,0.00702766]
[1735230665635,0.20766342,96008.0,95997.0,0.00602766]
[1735230665831,0.052133,95998.0,95997.0,0.00602766]
[1735230667038,0.20766342,96008.0,96007.0,0.00602766]
[1735230667440,0.052124,96016.0,96007.0,0.00602766]
[1735230667643,0.00156283,96018.0,96007.0,0.00602766]
[1735230667843,0.052127,96009.0,96007.0,0.00602766]
[1735230668546,0.052127,96009.0,96007.0,0.00702766]